bitfinex/quotes_BTCUSD_20230405
["timestamp","ask_amount","ask_price","bid_price","bid_amount"]
[1680656825265,0.46344973,28681.0,28680.0,0.0214]
[1680656825487,0.45844973,28681.0,28680.0,0.009]
[1680656826044,0.45844973,28681.0,28674.0,0.00018]
[1680656826045,0.5082189,28681.0,28674.0,0.00018]
[1680656826287,0.0295,28675.0,28671.0,0.16752]
[1680656826565,0.49660737,28674.0,28671.0,0.16752]
[1680656826808,0.49660737,28674.0,28671.0,0.00012]
[1680656826809,0.044641,28672.0,28671.0,0.00012]
[1680656827024,0.57956737,28672.0,28666.0,0.00018]
[1680656827258,0.038319,28672.0,28671.0,0.001]
[1680656827483,0.038319,28672.0,28666.0,0.16734]
[1680656827484,0.082476,28672.0,28666.0,0.16734]
[1680656827706,0.082476,28672.0,28665.0,0.00018]
[1680656827925,0.038319,28672.0,28664.0,0.00018]
[1680656828163,0.038319,28672.0,28665.0,0.16734]
[1680656828164,0.49660737,28671.0,28665.0,0.16734]
[1680656828379,0.0296,28667.0,28664.0,0.00018]
[1680656828628,0.53492837,28667.0,28664.0,0.00012]
[1680656828856,0.36343156,28667.0,28664.0,0.1674]
[1680656829074,0.35471056,28666.0,28664.0,0.00918]
[1680656829267,0.35471056,28666.0,28664.0,0.00012]
[1680656829501,0.36343156,28666.0,28664.0,0.001]
[1680656829731,0.36343156,28666.0,28663.0,0.00018]
[1680656829732,0.35471056,28666.0,28663.0,0.16746]
[1680656829956,0.35471056,28666.0,28664.0,0.001]
[1680656829957,0.36571056,28666.0,28664.0,0.001]
[1680656830428,0.37443156,28666.0,28664.0,0.001]
[1680656831792,0.41363982,28666.0,28664.0,0.001]
[1680656832035,0.071772,28665.0,28664.0,0.001]
[1680656832259,0.41027356,28665.0,28664.0,0.001]
[1680656832545,0.45201356,28665.0,28664.0,0.001]
[1680656832768,0.42585056,28665.0,28659.0,0.02339]
[1680656833007,0.1,28673.0,28670.0,0.4]
[1680656833246,0.01599717,28681.0,28674.0,0.3727]
[1680656833476,0.37070773,28681.0,28675.0,0.13605681]
[1680656833717,0.37070773,28681.0,28676.0,0.504585]
[1680656833718,0.01620717,28681.0,28676.0,0.504585]
[1680656833952,0.01599717,28681.0,28677.0,0.015858]
[1680656834185,0.01599717,28681.0,28678.0,0.017434]
[1680656834420,0.01599717,28681.0,28680.0,0.014649]
[1680656834649,0.01588167,28681.0,28680.0,0.014709]
[1680656834831,0.01588167,28681.0,28680.0,0.014649]
[1680656835324,0.01688167,28681.0,28677.0,0.3718708]
[1680656835539,0.01539767,28681.0,28679.0,0.017433]
[1680656835761,0.02339767,28681.0,28680.0,0.009809]
[1680656835994,0.01539767,28681.0,28680.0,0.008809]
[1680656836427,0.01639767,28681.0,28680.0,0.008809]
[1680656836883,0.00959767,28681.0,28680.0,0.008809]
[1680656837099,0.00859767,28681.0,28680.0,0.008809]
[1680656837327,0.01759767,28681.0,28680.0,0.009809]
[1680656837982,0.01759767,28681.0,28680.0,0.001]
[1680656838454,0.56778755,28681.0,28680.0,0.001]
[1680656838669,0.79084909,28681.0,28680.0,0.001]
[1680656838942,1.17225909,28681.0,28680.0,0.001]
[1680656839167,1.17225909,28681.0,28664.0,0.3734]
[1680656839168,1.1788098,28681.0,28668.0,0.00018]
[1680656839391,0.0294,28671.0,28668.0,0.00018]
[1680656839640,0.50532637,28670.0,28668.0,0.00018]
[1680656840090,0.048632,28669.0,28668.0,0.00018]
[1680656840310,0.40334256,28669.0,28668.0,0.00018]
[1680656840535,0.41206256,28669.0,28667.0,0.00018]
[1680656840751,0.35471056,28668.0,28666.0,0.00018]
[1680656841451,0.086461,28667.0,28665.0,0.00018]
[1680656841680,0.35471056,28666.0,28665.0,0.00018]
[1680656843422,0.35471056,28666.0,28665.0,0.00418]
[1680656843650,0.35471056,28666.0,28665.0,0.00018]
[1680656843651,0.39322162,28666.0,28665.0,0.00018]
[1680656843880,0.36443156,28666.0,28665.0,0.00418]
[1680656844333,0.41368156,28666.0,28665.0,0.00418]
[1680656844798,0.41257095,28666.0,28661.0,0.00012]
[1680656845023,0.56266816,28666.0,28660.0,0.00018]
[1680656845260,0.51321776,28666.0,28659.0,0.02339]
[1680656845483,0.14189681,28665.0,28659.0,0.02339]
[1680656845701,0.36343156,28664.0,28659.0,0.02321]
[1680656845920,0.49660737,28664.0,28659.0,0.02321]
[1680656846371,0.50532837,28664.0,28659.0,0.02321]
[1680656846583,0.36543156,28664.0,28659.0,0.02321]
[1680656846801,0.36543156,28664.0,28660.0,0.010064]
[1680656847042,0.36543156,28664.0,28659.0,0.02321]
[1680656847257,0.0296,28663.0,28659.0,0.02321]
[1680656847479,0.35471056,28662.0,28659.0,0.02321]
[1680656849486,0.36443256,28662.0,28659.0,0.02321]
[1680656849711,0.0296,28661.0,28659.0,0.02321]
[1680656849938,0.038322,28661.0,28659.0,0.02321]
[1680656850156,0.0296,28661.0,28659.0,0.02321]
[1680656851254,0.0098,28661.0,28659.0,0.02321]
[1680656851476,0.061058,28660.0,28659.0,0.02321]
[1680656851701,0.0098,28661.0,28659.0,0.02321]
[1680656852374,0.0108,28661.0,28659.0,0.02321]
[1680656852832,0.001,28661.0,28659.0,0.02321]
[1680656853053,0.001,28661.0,28660.0,0.010625]
[1680656853929,0.0097,28661.0,28660.0,0.010625]
[1680656854170,0.0107,28661.0,28660.0,0.010625]
[1680656854409,0.36541056,28661.0,28659.0,0.02321]
[1680656854632,0.44012462,28660.0,28659.0,0.02321]
[1680656854865,0.41219596,28660.0,28659.0,0.02321]
[1680656855099,0.42795667,28660.0,28659.0,0.02321]
[1680656855327,0.41240596,28660.0,28659.0,0.02321]
[1680656856254,0.43940596,28660.0,28659.0,0.02321]
[1680656856474,0.41240596,28660.0,28659.0,0.02321]
[1680656856709,0.56152596,28660.0,28659.0,0.02321]
[1680656857375,0.47408696,28660.0,28659.0,0.02010391]
[1680656857833,0.43047396,28660.0,28659.0,0.02010391]
[1680656858058,0.075873,28660.0,28659.0,0.02010391]
[1680656858279,0.035722,28660.0,28659.0,0.02010391]
[1680656858933,0.008722,28660.0,28659.0,0.02010391]
[1680656859157,0.084257,28660.0,28659.0,0.02010391]
[1680656859603,0.43896756,28660.0,28659.0,0.02010391]
[1680656860047,0.56108756,28660.0,28659.0,0.02010391]
[1680656860730,0.47385856,28660.0,28659.0,0.02010391]
[1680656860949,0.44685856,28660.0,28659.0,0.02010391]
[1680656861173,0.47385856,28660.0,28659.0,0.02010391]
[1680656863615,0.43024556,28660.0,28659.0,0.02010391]
[1680656863828,0.43896756,28660.0,28659.0,0.02010391]
[1680656864744,0.035722,28660.0,28659.0,0.02010391]
[1680656865180,0.008722,28660.0,28659.0,0.02010391]
[1680656865419,0.035722,28660.0,28659.0,0.02010391]
[1680656865853,0.099014,28660.0,28659.0,0.02010391]
[1680656866067,0.40787756,28660.0,28659.0,0.02010391]
[1680656866291,0.55485456,28660.0,28659.0,0.02010391]
[1680656866938,0.52785456,28660.0,28659.0,0.02010391]
[1680656867152,0.55485456,28660.0,28659.0,0.02010391]
[1680656869522,0.52785456,28660.0,28659.0,0.02010391]
[1680656869769,0.62212002,28660.0,28659.0,0.02010391]
[1680656870014,0.89512002,28660.0,28659.0,0.02010391]
[1680656870226,0.85485456,28660.0,28659.0,0.02010391]
[1680656870442,0.82785456,28660.0,28659.0,0.02010391]
[1680656870715,0.85485456,28660.0,28659.0,0.02010391]
[1680656872901,0.85485456,28660.0,28659.0,0.01010391]
[1680656872902,0.75485456,28660.0,28659.0,0.01010391]
[1680656873802,0.84208356,28660.0,28659.0,0.01010391]
[1680656874022,0.75485456,28660.0,28659.0,0.01010391]
[1680656875134,0.7547427,28660.0,28659.0,0.01010391]
[1680656875326,0.027,28660.0,28659.0,0.01010391]
[1680656876027,0.008722,28661.0,28659.0,0.01010391]
[1680656876247,0.027,28660.0,28659.0,0.01010391]
[1680656876479,0.008722,28660.0,28659.0,0.01010391]
[1680656876694,0.40557756,28660.0,28659.0,0.01010391]
[1680656876959,0.43719356,28660.0,28659.0,0.01010391]
[1680656877172,0.46419356,28660.0,28659.0,0.01010391]
[1680656877596,0.46440356,28660.0,28652.0,0.31836897]
[1680656877857,0.49660737,28659.0,28652.0,0.31818897]
[1680656878093,0.008723,28658.0,28653.0,0.01022]
[1680656878354,0.14210681,28659.0,28654.0,0.67289953]
[1680656878575,0.00121,28660.0,28656.0,0.31818897]
[1680656878802,0.00121,28660.0,28657.0,0.010218]
[1680656878803,0.001,28660.0,28657.0,0.010218]
[1680656879031,0.0097,28663.0,28657.0,0.010218]
[1680656879032,0.018422,28663.0,28657.0,0.010218]
[1680656879246,0.001,28658.0,28657.0,0.010218]
[1680656879469,0.008722,28662.0,28657.0,0.010218]
[1680656879694,0.018523,28658.0,28653.0,0.00018]
[1680656879912,0.018523,28658.0,28652.0,0.3727]
[1680656879913,0.0098,28654.0,28652.0,0.3727]
[1680656880130,0.0098,28654.0,28652.0,0.37282]
[1680656880131,0.15169681,28654.0,28652.0,0.37282]
[1680656880347,0.026175,28653.0,28652.0,0.37282]
[1680656880570,0.008725,28653.0,28652.0,0.383232]
[1680656880794,0.0098,28654.0,28652.0,0.383232]
[1680656881007,0.0098,28654.0,28653.0,0.008924]
[1680656881224,0.0098,28654.0,28653.0,0.011924]
[1680656881441,0.0098,28654.0,28653.0,0.008924]
[1680656881663,0.0098,28654.0,28653.0,0.481624]
[1680656881896,0.00021,28659.0,28653.0,0.673554]
[1680656882114,0.018522,28661.0,28654.0,0.010408]
[1680656882992,0.49660737,28660.0,28654.0,0.010408]
[1680656883218,0.008723,28659.0,28654.0,0.010408]
[1680656883491,0.0097,28658.0,28654.0,0.010408]
[1680656883714,0.008723,28657.0,28652.0,0.37288]
[1680656883932,0.15061981,28657.0,28653.0,0.010795]
[1680656884153,0.008723,28657.0,28653.0,0.010795]
[1680656884787,0.010723,28657.0,28653.0,0.010795]
[1680656885269,0.01060173,28657.0,28653.0,0.010795]
[1680656885487,0.002,28657.0,28653.0,0.010795]
[1680656885712,0.010723,28657.0,28653.0,0.010795]
[1680656888766,0.002,28657.0,28654.0,0.052348]
[1680656888982,0.03864106,28657.0,28654.0,0.017449]
[1680656889202,0.002,28657.0,28653.0,0.017449]
[1680656889416,0.0098,28655.0,28654.0,0.010957]
[1680656890556,0.0178,28655.0,28654.0,0.010957]
[1680656890776,0.008,28655.0,28654.0,0.575586]
[1680656890997,0.008,28655.0,28654.0,0.558137]
[1680656891219,0.008,28655.0,28654.0,0.91284756]
[1680656891456,0.008,28655.0,28654.0,2.23189681]
[1680656891684,9e-05,28663.0,28654.0,2.31871671]
[1680656891907,9e-05,28663.0,28656.0,0.3727]
[1680656891908,0.008722,28662.0,28656.0,0.3727]
[1680656892122,0.008722,28662.0,28657.0,0.010913]
[1680656893722,0.40881101,28666.0,28657.0,0.010913]
[1680656893723,0.08256772,28670.0,28660.0,0.75471056]
[1680656893951,0.0212,28676.0,28670.0,0.3727]
[1680656894187,0.02141,28676.0,28675.0,0.3727]
[1680656894458,0.02141,28676.0,28675.0,0.381525]
[1680656895268,0.0212,28676.0,28675.0,0.381525]
[1680656895632,0.02108892,28676.0,28675.0,0.381525]
[1680656895865,0.02108892,28676.0,28675.0,0.398961]
[1680656896090,0.02108892,28676.0,28675.0,2.00357156]
[1680656896316,0.02108892,28676.0,28675.0,2.17085156]
[1680656896542,0.02108892,28676.0,28675.0,2.47103156]
[1680656896764,0.03669892,28680.0,28679.0,1.4727]
[1680656896989,0.03669892,28680.0,28679.0,1.674524]
[1680656897909,0.05469892,28680.0,28679.0,1.676524]
[1680656898840,0.05469892,28680.0,28679.0,1.674524]
[1680656898841,0.03669892,28680.0,28679.0,1.674524]
[1680656899078,0.03869892,28680.0,28679.0,1.692524]
[1680656899784,0.03869892,28680.0,28679.0,1.61666]
[1680656900017,0.03869892,28680.0,28679.0,0.51666]
[1680656900724,0.03869892,28680.0,28679.0,0.14396]
[1680656900950,0.03869892,28680.0,28679.0,0.018]
[1680656900951,0.02420492,28680.0,28679.0,0.018]
[1680656901627,0.03390492,28680.0,28679.0,0.018]
[1680656901862,0.02518892,28680.0,28679.0,0.018]
[1680656902083,0.02318892,28680.0,28674.0,0.3727]
[1680656902324,0.16508573,28680.0,28675.0,0.742431]
[1680656902577,0.18629573,28680.0,28679.0,0.001]
[1680656902804,0.02339892,28680.0,28675.0,0.3727]
[1680656903019,0.16608573,28680.0,28676.0,0.01045]
[1680656903242,0.02439892,28680.0,28676.0,0.01045]
[1680656903468,0.02318892,28680.0,28676.0,0.01045]
[1680656903683,0.04418892,28680.0,28679.0,0.001]
[1680656903900,0.02318892,28680.0,28675.0,0.3727]
[1680656904123,0.16508573,28680.0,28676.0,0.010386]
[1680656904346,0.02339892,28680.0,28676.0,0.010386]
[1680656904562,0.02318892,28680.0,28676.0,0.010386]
[1680656905462,0.01448892,28680.0,28677.0,0.17435]
[1680656905702,0.01348892,28680.0,28679.0,0.009039]
[1680656905917,0.01448892,28680.0,28679.0,0.009039]
[1680656906369,0.01427561,28680.0,28679.0,0.009039]
[1680656906794,0.01327561,28680.0,28679.0,0.009039]
[1680656907675,0.01427561,28680.0,28679.0,0.009039]
[1680656907867,0.01427561,28680.0,28679.0,0.381739]
[1680656908546,0.01427561,28680.0,28679.0,0.009039]
[1680656908768,0.01427561,28680.0,28677.0,0.00018]
[1680656908769,0.03279161,28680.0,28677.0,0.00018]
[1680656908988,0.0098,28678.0,28675.0,0.16746]
[1680656909255,0.15061381,28677.0,28674.0,0.00018]
[1680656909473,0.50532437,28677.0,28672.0,0.00018]
[1680656909698,0.0098,28675.0,28672.0,0.00018]
[1680656909922,0.16041481,28675.0,28672.0,0.01075]
[1680656910149,0.51512537,28675.0,28670.0,0.00018]
[1680656910379,0.51512537,28675.0,28668.0,0.00018]
[1680656910380,0.0097,28673.0,28668.0,0.00018]
[1680656910646,0.0097,28673.0,28667.0,0.00018]
[1680656910647,0.0098,28669.0,28667.0,0.00018]
[1680656910873,0.21592581,28668.0,28660.0,6e-05]
[1680656911097,0.0098,28661.0,28658.0,0.00018]
[1680656911322,0.14189681,28660.0,28658.0,0.010301]
[1680656911539,0.37323356,28659.0,28658.0,0.00018]
[1680656911766,0.50640737,28659.0,28658.0,0.00018]
[1680656912000,0.50640737,28659.0,28657.0,0.01844]
[1680656912001,0.36472056,28659.0,28657.0,0.01844]
[1680656912233,0.35471056,28659.0,28657.0,0.01844]
[1680656912453,0.00021,28659.0,28658.0,0.010177]
[1680656912676,0.018422,28661.0,28658.0,0.010177]
[1680656912906,0.35471056,28660.0,28658.0,0.010177]
[1680656913119,0.35492056,28660.0,28659.0,0.009272]
[1680656913340,0.35592056,28660.0,28659.0,0.009272]
[1680656913545,0.00021,28660.0,28659.0,0.009272]
[1680656913793,0.0177,28661.0,28659.0,0.009272]
[1680656914032,0.38087756,28660.0,28657.0,0.01844]
[1680656914262,0.39508756,28660.0,28659.0,0.001]
[1680656914485,0.39078756,28660.0,28657.0,0.01844]
[1680656914710,0.38108756,28660.0,28659.0,0.001]
[1680656914933,0.43687956,28660.0,28657.0,0.01844]
[1680656915155,0.0098,28658.0,28657.0,0.01844]
[1680656915387,0.018523,28658.0,28657.0,0.01844]
[1680656916712,0.032523,28658.0,28657.0,0.01944]
[1680656917151,0.00969011,28658.0,28657.0,0.01844]
[1680656917367,0.02369011,28658.0,28657.0,0.01944]
[1680656917581,0.00969011,28658.0,28657.0,0.01844]
[1680656917800,0.02369011,28658.0,28657.0,0.01944]
[1680656918042,0.00969011,28658.0,28657.0,0.01844]
[1680656918710,0.01841311,28658.0,28657.0,0.01844]
[1680656918938,0.03241311,28658.0,28657.0,0.01944]
[1680656919159,0.01841311,28658.0,28657.0,0.01844]
[1680656919386,0.03241311,28658.0,28657.0,0.01944]
[1680656919819,0.00969011,28658.0,28657.0,0.01844]
[1680656920042,0.44631419,28664.0,28659.0,1.4727]
[1680656920269,0.446531,28664.0,28660.0,0.008785]
[1680656920489,0.0097,28661.0,28660.0,0.00018]
[1680656920717,0.37313256,28661.0,28659.0,0.00012]
[1680656920938,0.35471056,28660.0,28657.0,0.01944]
[1680656921163,0.0098,28658.0,28657.0,0.01944]
[1680656921384,0.0098,28658.0,28657.0,0.030377]
[1680656921848,0.0098,28658.0,28657.0,0.029377]
[1680656922574,0.0098,28658.0,28657.0,1.129377]
[1680656922793,0.0098,28664.0,28660.0,1.1]
[1680656923017,0.0098,28664.0,28661.0,0.008511]
[1680656923018,0.35471056,28663.0,28661.0,0.008511]
[1680656923244,0.35471056,28663.0,28662.0,0.010648]
[1680656924136,0.35471056,28663.0,28662.0,0.010828]
[1680656924805,0.36271056,28663.0,28662.0,0.010828]
[1680656925032,0.35471056,28663.0,28662.0,0.010828]
[1680656925254,0.37743256,28663.0,28662.0,0.00118]
[1680656925449,0.39487656,28663.0,28662.0,0.001]
[1680656925711,0.44243756,28663.0,28662.0,0.001]
[1680656925968,0.38087656,28663.0,28658.0,0.00018]
[1680656926191,0.40087656,28663.0,28662.0,0.002]
[1680656926410,0.38451056,28663.0,28662.0,0.002]
[1680656927062,0.38440349,28663.0,28662.0,0.002]
[1680656927289,0.36434349,28663.0,28657.0,0.036067]
[1680656927507,0.14189681,28662.0,28658.0,0.010984]
[1680656927722,0.35471056,28662.0,28658.0,0.010984]
[1680656928368,0.35492056,28662.0,28658.0,0.010883]
[1680656928803,0.35592056,28662.0,28658.0,0.022883]
[1680656928994,0.35492056,28662.0,28659.0,0.008364]
[1680656929213,0.35592056,28662.0,28658.0,0.010413]
[1680656929933,0.35471056,28661.0,28658.0,0.010413]
[1680656930151,0.0098,28659.0,28658.0,0.069787]
[1680656930366,0.36451056,28659.0,28658.0,0.01062]
[1680656930798,0.36451056,28659.0,28658.0,0.01562]
[1680656931056,0.36521056,28659.0,28658.0,0.01062]
[1680656931265,0.36621056,28659.0,28658.0,0.01062]
[1680656932483,0.36621056,28659.0,28658.0,0.028067]
[1680656932709,0.36621056,28659.0,28658.0,0.01062]
[1680656935304,0.36621056,28659.0,28657.0,0.01844]
[1680656935752,0.40285262,28659.0,28657.0,0.01844]
[1680656935980,0.36621056,28659.0,28657.0,0.01844]
[1680656936414,0.36521056,28659.0,28657.0,0.01844]
[1680656936635,0.36621056,28659.0,28658.0,0.010198]
[1680656937414,0.36521056,28659.0,28658.0,0.010198]
[1680656937619,0.36621056,28659.0,28658.0,0.010198]
[1680656938832,0.0115,28659.0,28658.0,0.010198]
[1680656939054,0.001,28659.0,28658.0,0.010198]
[1680656940205,0.06330119,28665.0,28658.0,0.7678857]
[1680656940422,0.06330119,28665.0,28658.0,0.7578677]
[1680656940423,0.0105,28662.0,28658.0,0.7578677]
[1680656940632,0.35471056,28661.0,28658.0,0.7578677]
[1680656940879,0.35492056,28661.0,28660.0,0.010701]
[1680656941160,0.35492056,28661.0,28658.0,0.57955077]
[1680656941582,0.35492056,28661.0,28660.0,0.010672]
[1680656941797,0.35592056,28661.0,28660.0,0.010672]
[1680656942231,0.36642056,28661.0,28660.0,0.010672]
[1680656942447,0.36542056,28661.0,28658.0,0.57955077]
[1680656942665,0.36642056,28661.0,28660.0,0.01041]
[1680656942879,0.36542056,28661.0,28660.0,0.01041]
[1680656943093,0.37942056,28661.0,28660.0,0.01141]
[1680656943307,0.37942056,28661.0,28660.0,0.001]
[1680656944562,0.44047756,28661.0,28660.0,0.001]
[1680656944949,0.40558756,28661.0,28660.0,0.001]
[1680656945162,0.38814256,28661.0,28660.0,0.001]
[1680656945584,0.37942056,28661.0,28660.0,0.001]
[1680656946889,0.37942056,28661.0,28658.0,0.48055077]
[1680656947763,0.37942056,28661.0,28660.0,0.011068]
[1680656948190,0.36542056,28661.0,28660.0,0.011068]
[1680656948890,0.36642056,28661.0,28658.0,0.48055077]
[1680656949076,0.0105,28660.0,28658.0,0.48055077]
[1680656949275,0.35471056,28659.0,28658.0,0.48055077]
[1680656949451,0.35492056,28659.0,28658.0,0.48055077]
[1680656949651,0.36542056,28659.0,28658.0,0.48055077]
[1680656950465,0.36542056,28659.0,28658.0,0.48055077]
[1680656951037,0.43285979,28659.0,28658.0,0.48055077]
[1680656951253,0.41701756,28659.0,28658.0,0.48055077]
[1680656951715,0.41601756,28659.0,28658.0,0.48055077]
[1680656951931,0.41601756,28659.0,28658.0,0.48155077]
[1680656951932,0.43701756,28659.0,28658.0,0.48155077]
[1680656955680,0.41601756,28659.0,28658.0,0.48055077]
[1680656956178,0.76285302,28659.0,28658.0,0.48055077]
[1680656956414,0.76285302,28659.0,28658.0,0.35489056]
[1680656956415,0.046374,28659.0,28658.0,0.35489056]
[1680656956676,0.046374,28659.0,28658.0,0.01066]
[1680656956677,0.027,28659.0,28658.0,0.01066]
[1680656956900,0.445741,28667.0,28658.0,0.01048]
[1680656957126,0.027,28659.0,28658.0,0.01048]
[1680656957354,0.006,28663.0,28658.0,0.01048]
[1680656957571,0.001,28659.0,28658.0,0.01166]
[1680656957789,0.36071056,28663.0,28658.0,0.01066]
[1680656958006,0.006,28659.0,28658.0,0.01066]
[1680656958227,0.36071056,28663.0,28658.0,0.01066]
[1680656958434,0.39680262,28663.0,28659.0,0.052338]
[1680656958663,0.00021,28665.0,28660.0,0.008867]
[1680656958664,0.006,28665.0,28660.0,0.008867]
[1680656958882,0.006,28668.0,28664.0,0.17442]
[1680656959108,0.006,28668.0,28665.0,0.010293]
[1680656959745,0.006,28666.0,28665.0,0.010293]
[1680656959996,0.006,28666.0,28665.0,0.36700356]
[1680656960221,0.001,28668.0,28665.0,0.575035]
[1680656960578,0.006,28671.0,28667.0,0.381746]
[1680656960779,0.006,28671.0,28668.0,0.010234]
[1680656961379,0.014719,28671.0,28665.0,0.37282]
[1680656961589,0.15661581,28671.0,28666.0,0.0103]
[1680656961784,0.15661581,28671.0,28665.0,0.37288]
[1680656961785,0.014719,28671.0,28665.0,0.37288]
[1680656961981,0.15661581,28671.0,28666.0,0.010504]
[1680656962183,0.014719,28671.0,28665.0,0.37288]
[1680656962355,0.15761581,28671.0,28667.0,0.002]
[1680656962561,0.15761581,28671.0,28665.0,0.37288]
[1680656962562,0.014719,28671.0,28665.0,0.37288]
[1680656962862,0.14989681,28671.0,28666.0,0.010866]
[1680656963240,0.007,28671.0,28667.0,0.002]
[1680656963455,0.059317,28671.0,28667.0,0.002]
[1680656963669,0.059317,28671.0,28665.0,0.37288]
[1680656963670,0.067036,28671.0,28665.0,0.37288]
[1680656963898,0.14189681,28670.0,28666.0,0.002]
[1680656964086,0.02616,28669.0,28666.0,0.00018]
[1680656964335,0.02616,28669.0,28664.0,0.1674]
[1680656964336,0.006,28667.0,28664.0,0.00018]
[1680656964544,0.006,28667.0,28662.0,0.00018]
[1680656964545,0.006,28665.0,28662.0,0.00018]
[1680656964761,0.31744,28669.0,28660.0,0.00012]
[1680656964762,0.006,28663.0,28660.0,0.00012]
[1680656964976,0.006,28663.0,28658.0,0.017627]
[1680656965189,0.006,28663.0,28659.0,0.010926]
[1680656966263,0.007,28663.0,28659.0,0.012926]
[1680656966476,0.001,28663.0,28659.0,0.012926]
[1680656967845,0.001,28663.0,28660.0,0.3727]
[1680656968117,0.001,28663.0,28662.0,0.481119]
[1680656968344,0.001,28663.0,28662.0,0.707882]
[1680656968570,0.006,28669.0,28662.0,1.22999256]
[1680656968571,0.00866104,28669.0,28662.0,1.22999256]
[1680656968799,0.00894833,28677.0,28669.0,0.3727]
[1680656969024,0.21257827,28678.0,28675.0,0.17436]
[1680656969025,0.00621,28678.0,28675.0,0.17436]
[1680656969249,0.0212,28679.0,28677.0,0.010342]
[1680656969472,0.0212,28679.0,28678.0,0.008983]
[1680656969931,0.0212,28679.0,28678.0,0.004103]
[1680656970169,0.0212,28679.0,28678.0,0.394117]
[1680656970389,0.0212,28679.0,28678.0,0.376683]
[1680656970858,0.0212,28679.0,28678.0,0.394117]
[1680656971077,0.0212,28679.0,28678.0,0.476683]
[1680656971297,0.0212,28679.0,28678.0,0.376683]
[1680656971745,0.0352,28679.0,28678.0,0.376683]
[1680656972008,0.0212,28679.0,28678.0,0.376683]
[1680656972223,0.0212,28679.0,28678.0,0.383683]
[1680656972224,0.0222,28679.0,28678.0,0.383683]
[1680656973093,0.0222,28679.0,28678.0,0.483683]
[1680656973984,0.0222,28679.0,28678.0,0.383683]
[1680656974449,0.0222,28679.0,28678.0,0.015191]
[1680656974692,0.0222,28679.0,28678.0,0.052091]
[1680656974911,0.0222,28679.0,28678.0,0.424791]
[1680656975132,0.0222,28679.0,28678.0,0.052091]
[1680656975375,0.0222,28679.0,28678.0,0.0439]
[1680656975376,0.030917,28679.0,28678.0,0.0439]
[1680656975605,0.116131,28679.0,28678.0,0.0439]
[1680656975828,0.065785,28679.0,28678.0,0.007]
[1680656976054,0.39052756,28679.0,28678.0,0.007]
[1680656976289,0.43988856,28679.0,28673.0,1.1]
[1680656976514,0.14189681,28678.0,28673.0,1.1]
[1680656976751,0.15082381,28678.0,28673.0,1.1]
[1680656976976,0.50553437,28678.0,28672.0,0.00012]
[1680656977219,0.50553437,28678.0,28671.0,0.16734]
[1680656977434,0.50553437,28678.0,28673.0,1.1]
[1680656977655,0.36363756,28678.0,28672.0,0.00018]
[1680656977873,0.36363756,28678.0,28671.0,0.54004]
[1680656977874,0.58022209,28678.0,28671.0,0.390139]
[1680656978087,0.14189681,28677.0,28671.0,0.54004]
[1680656978312,0.008718,28676.0,28671.0,0.16734]
[1680656978535,0.0049,28675.0,28671.0,1.26734]
[1680656978754,0.0049,28673.0,28670.0,0.00018]
[1680656978987,0.008719,28672.0,28671.0,0.007]
[1680656979229,0.058393,28672.0,28671.0,0.007]
[1680656979441,0.058393,28672.0,28667.0,1.1]
[1680656979442,0.008719,28672.0,28667.0,1.1]
[1680656979661,0.15061581,28672.0,28671.0,0.007]
[1680656979927,0.0049,28671.0,28667.0,1.1]
[1680656980150,0.15551581,28671.0,28667.0,1.1]
[1680656980375,0.0049,28668.0,28666.0,0.00018]
[1680656980594,0.0049,28668.0,28662.0,1.9868]
[1680656980595,0.00872,28667.0,28663.0,0.00018]
[1680656980815,0.00872,28667.0,28661.0,1.1]
[1680656980816,0.14189681,28666.0,28661.0,1.10018]
[1680656981033,0.14189681,28666.0,28661.0,0.00018]
[1680656981034,0.0049,28664.0,28661.0,0.00018]
[1680656981254,0.0049,28664.0,28661.0,0.008225]
[1680656981469,0.0049,28664.0,28660.0,0.02332]
[1680656981470,0.0049,28664.0,28663.0,0.007815]
[1680656981800,0.0049,28664.0,28660.0,0.02332]
[1680656981801,0.013621,28664.0,28660.0,0.02332]
[1680656982237,0.52280839,28664.0,28661.0,0.001]
[1680656982520,0.52280839,28664.0,28660.0,0.02332]
[1680656982521,0.0049,28661.0,28660.0,0.02332]
[1680656982757,0.013622,28661.0,28660.0,0.02432]
[1680656982979,0.013622,28661.0,28660.0,0.02332]
[1680656983421,0.36833256,28661.0,28660.0,0.02332]
[1680656983638,0.41838356,28661.0,28660.0,0.02332]
[1680656984501,0.44538356,28661.0,28660.0,0.02432]
[1680656985156,0.41838356,28661.0,28660.0,0.02332]
[1680656985589,0.48898732,28661.0,28660.0,0.02432]
[1680656985808,0.46198732,28661.0,28660.0,0.02332]
[1680656986034,0.46198732,28661.0,28660.0,0.02432]
[1680656986035,0.43666156,28661.0,28660.0,0.02432]
[1680656986729,0.081951,28661.0,28660.0,0.02432]
[1680656986955,0.0319,28661.0,28660.0,0.02432]
[1680656987389,0.06556,28661.0,28660.0,0.02332]
[1680656987628,0.09256,28661.0,28660.0,0.02432]
[1680656987854,0.09256,28661.0,28660.0,0.02332]
[1680656987855,0.117895,28661.0,28660.0,0.02332]
[1680656988085,0.59783196,28661.0,28660.0,0.02432]
[1680656988312,0.89783196,28661.0,28660.0,0.02332]
[1680656988534,0.87083196,28661.0,28660.0,0.02332]
[1680656988748,0.87083196,28661.0,28660.0,0.02432]
[1680656988749,0.89783196,28661.0,28660.0,0.02432]
[1680656988967,0.81060596,28661.0,28660.0,0.02432]
[1680656989202,0.78360596,28661.0,28660.0,0.02332]
[1680656989435,0.78381596,28661.0,28660.0,0.02332]
[1680656990116,0.79981556,28661.0,28660.0,0.02432]
[1680656990332,0.77281556,28661.0,28660.0,0.02332]
[1680656990960,0.76492556,28661.0,28660.0,0.02432]
[1680656991209,0.73792556,28661.0,28660.0,0.02332]
[1680656991410,0.76492556,28661.0,28660.0,0.02432]